bitfinex-derivatives/quotes_SOLF0:USTF0_20240924
["timestamp","ask_amount","ask_price","bid_price","bid_amount"]
[1727150196013,10.7768,146.66,146.63,3.4099]
[1727150197012,1.3368,146.66,146.62,9.44]
[1727150197215,12.849,146.68,146.62,9.44]
[1727150198216,12.849,146.68,146.64,3.4096]
[1727150199725,9.44,146.66,146.64,3.4096]
[1727150200919,9.44,146.66,146.63,3.41]
[1727150203316,3.4092,146.67,146.63,3.41]
[1727150203517,9.44,146.66,146.63,3.41]
[1727150204621,12.8494,146.66,146.62,3.4102]
[1727150206223,9.44,146.65,146.62,3.4102]
[1727150206421,9.44,146.63,146.62,3.4102]
[1727150206725,9.44,146.63,146.61,3.4104]
[1727150209918,9.44,146.63,146.6,3.4107]
[1727150212731,9.44,146.61,146.58,3.4111]
[1727150212932,9.44,146.59,146.55,78.03414383]
[1727150213833,9.44,146.61,146.56,9.44]
[1727150214033,9.44,146.61,146.55,68.59414383]
[1727150214235,9.44,146.6,146.55,78.03414383]
[1727150214439,12.8508,146.6,146.56,3.4115]
[1727150215639,9.44,146.57,146.52,10.8709]
[1727150215937,9.44,146.56,146.52,10.8709]
[1727150216139,9.44,146.56,146.53,3.4122]
[1727150217841,9.44,146.56,146.52,10.8709]
[1727150218231,12.8518,146.56,146.52,14.2834]
[1727150218739,9.44,146.55,146.52,3.4125]
[1727150219848,3.4118,146.56,146.52,3.4125]
[1727150220038,9.44,146.55,146.52,3.4125]
[1727150220434,9.44,146.55,146.51,9.44]
[1727150220742,9.44,146.55,146.53,3.4124]
[1727150226040,12.8515,146.57,146.53,3.4124]
[1727150227947,9.44,146.54,146.48,1.3088]
[1727150228239,9.44,146.49,146.44,1.3449]
[1727150228447,9.44,146.48,146.44,4.7593]
[1727150228635,9.44,146.48,146.44,1.3449]
[1727150228840,9.44,146.46,146.42,9.44]
[1727150229040,9.44,146.46,146.41,9.44]
[1727150229340,9.44,146.45,146.41,9.44]
[1727150230133,9.44,146.45,146.42,3.4148]
[1727150230645,9.44,146.45,146.4,1.3449]
[1727150230841,9.44,146.45,146.41,3.4151]
[1727150231047,9.44,146.43,146.41,3.4151]
[1727150231737,9.44,146.43,146.4,1.3449]
[1727150231941,9.44,146.43,146.4,4.7602]
[1727150232137,248.5945,146.56,146.4,1.3449]
[1727150232343,9.44,146.45,146.4,1.3449]
[1727150232741,9.44,146.45,146.42,3.4148]
[1727150235646,9.44,146.44,146.4,1.3449]
[1727150236455,3.4141,146.46,146.4,1.3449]
[1727150236650,9.44,146.45,146.4,10.7849]
[1727150237844,9.44,146.45,146.42,3.4149]
[1727150240751,3.34311919,146.48,146.4,10.7849]
[1727150241054,9.44,146.45,146.4,10.7849]
[1727150241755,9.44,146.45,146.42,3.4148]
[1727150242660,9.44,146.43,146.4,1.3449]
[1727150244749,9.44,146.43,146.41,3.4152]
[1727150244949,9.44,146.43,146.4,1.3449]
[1727150245348,9.44,146.43,146.4,4.7602]
[1727150246346,9.44,146.44,146.4,1.3449]
[1727150246954,9.44,146.44,146.41,3.415]
[1727150247953,3.4143,146.45,146.41,3.415]
[1727150248154,9.44,146.45,146.42,3.4149]
[1727150248755,10.8018,146.46,146.42,3.4149]
[1727150249461,9.44,146.45,146.42,3.4149]
[1727150250565,9.44,146.45,146.41,9.44]
[1727150251060,9.44,146.45,146.42,3.4149]
[1727150254262,9.44,146.44,146.41,3.4151]
[1727150262166,9.44,146.44,146.4,1.3449]
[1727150262367,9.44,146.44,146.38,9.44]
[1727150262868,9.44,146.42,146.39,3.4155]
[1727150263469,9.44,146.42,146.4,3.4154]
[1727150264167,9.44,146.43,146.4,3.4154]
[1727150267371,12.8548,146.43,146.39,3.4156]
[1727150267562,9.44,146.41,146.37,9.44]
[1727150267766,9.44,146.41,146.36,79.41001099]
[1727150267969,9.44,146.41,146.38,3.4158]
[1727150268170,9.44,146.41,146.37,9.44]
[1727150269774,9.44,146.41,146.39,3.4156]
[1727150272575,9.44,146.41,146.4,3.4154]
[1727150274278,9.44,146.41,146.39,3.4155]
[1727150280376,3.4146,146.44,146.4,3.4154]
[1727150280583,9.44,146.43,146.4,3.4154]
[1727150282278,4.8178,146.45,146.41,3.4151]
[1727150282482,9.44,146.44,146.41,3.4151]
[1727150286293,12.8545,146.44,146.41,3.4151]
[1727150289796,9.44,146.42,146.33,3.37444058]
[1727150290004,9.44,146.4,146.34,10.7554]
[1727150290895,1.4035,146.45,146.38,9.44]
[1727150291090,9.44,146.43,146.38,9.44]
[1727150291398,9.44,146.46,146.36,6.60308555]
[1727150291599,9.44,146.46,146.41,9.44]
[1727150292299,9.44,146.44,146.38,9.44]
[1727150293405,9.44,146.44,146.4,3.4153]
[1727150298100,9.44,146.45,146.41,9.44]
[1727150298905,3.4139,146.47,146.42,3.4148]
[1727150299108,12.8539,146.47,146.42,12.8548]
[1727150300805,9.44,146.46,146.42,3.4148]
[1727150301011,12.854,146.46,146.42,3.4148]
[1727150306115,3.4143,146.45,146.41,3.415]
[1727150308218,12.8542,146.46,146.41,3.415]
[1727150308914,3.4143,146.45,146.41,3.415]
[1727150310112,9.44,146.43,146.4,3.4154]
[1727150311210,9.44,146.44,146.41,3.4152]
[1727150311914,9.44,146.44,146.4,3.4153]
[1727150312921,9.44,146.43,146.39,3.4155]
[1727150313218,9.44,146.43,146.37,69.98724949]
[1727150313219,9.44,146.4,146.37,68.67864949]
[1727150314107,9.44,146.41,146.37,68.67864949]
[1727150314623,9.44,146.41,146.38,3.4159]
[1727150316825,9.44,146.41,146.39,3.4156]
[1727150317016,3.4149,146.43,146.39,3.4156]
[1727150317017,12.8549,146.43,146.39,3.4156]
[1727150317221,9.44,146.43,146.39,3.4156]
[1727150317925,12.8547,146.43,146.39,3.4156]
[1727150320921,12.8546,146.44,146.4,3.4154]
[1727150323934,12.8546,146.44,146.41,3.4152]
[1727150326224,3.4146,146.44,146.41,3.4152]
[1727150326425,9.44,146.43,146.41,3.4152]
[1727150332634,9.44,146.43,146.4,3.4153]
[1727150333839,12.8547,146.43,146.4,3.4153]
[1727150334737,12.8547,146.43,146.37,68.67864949]
[1727150334935,12.8547,146.43,146.39,3.4156]
[1727150336148,12.8551,146.42,146.38,3.4158]
[1727150336337,1.412,146.46,146.34,1.3154]
[1727150336540,9.44,146.38,146.33,9.44]
[1727150337639,12.856,146.38,146.34,3.4167]
[1727150339244,12.8557,146.39,146.35,3.4166]
[1727150339644,9.44,146.39,146.36,9.44]
[1727150339947,12.8555,146.4,146.36,9.44]
[1727150340640,1.412,146.46,146.39,9.44]
[1727150340842,9.44,146.45,146.4,9.44]
[1727150341044,3.4145,146.44,146.4,12.8553]
[1727150341243,1.4357,146.48,146.4,9.44]
[1727150341544,1.4357,146.48,146.44,12.8543]
[1727150341945,3.34870533,146.6,146.47,9.44]
[1727150342147,9.44,146.52,146.47,9.44]
[1727150342343,12.8527,146.52,146.47,12.8536]
[1727150342545,12.8527,146.52,146.47,9.44]
[1727150343050,9.44,146.52,146.48,3.4135]
[1727150343249,9.44,146.52,146.47,9.44]
[1727150343451,3.45562615,146.53,146.42,2.81]
[1727150343452,3.45562615,146.53,146.49,9.44]
[1727150343647,12.8522,146.54,146.49,12.8532]
[1727150345642,3.4124,146.53,146.49,12.8532]
[1727150347254,2.7597,146.56,146.52,9.44]
[1727150347448,9.44,146.59,146.53,9.44]
[1727150347853,12.8512,146.59,146.55,3.4119]
[1727150348053,9.44,146.57,146.52,9.44]
[1727150348661,9.44,146.57,146.53,3.4123]
[1727150348662,12.8516,146.57,146.53,3.4123]
[1727150350057,9.44,146.54,146.45,68.63910585]
[1727150350251,9.44,146.54,146.49,9.44]
[1727150350856,9.44,146.54,146.5,9.44]
[1727150351257,9.44,146.54,146.5,12.8529]
[1727150351960,9.44,146.54,146.46,1.3466]
[1727150351961,14.1516,146.56,146.51,12.8528]
[1727150352757,14.1516,146.56,146.52,3.4126]
[1727150352958,10.7398,146.56,146.52,3.4126]
[1727150355161,14.1516,146.56,146.52,3.4126]
[1727150355458,9.44,146.56,146.51,9.44]
[1727150355663,9.44,146.58,146.52,9.44]
[1727150355852,12.8512,146.58,146.52,9.44]
[1727150356057,1.4176,146.62,146.54,9.44]
[1727150356058,13.62645513,146.61,146.54,9.44]
[1727150356261,1.4176,146.62,146.56,9.44]
[1727150356560,1.4176,146.62,146.59,3.4108]
[1727150360465,12.8501,146.63,146.59,3.4108]
[1727150360772,9.44,146.65,146.6,9.44]
[1727150361270,3.4099,146.64,146.61,3.4105]
[1727150363569,3.4099,146.64,146.6,12.8506]
[1727150363763,12.8499,146.64,146.6,3.4106]
[1727150367068,3.4099,146.64,146.6,12.8506]
[1727150367475,3.4099,146.64,146.61,3.4105]
[1727150367773,3.4099,146.64,146.61,12.8505]
[1727150370568,3.4099,146.64,146.52,1.3815]
[1727150370569,1.4059,146.67,146.63,9.44]
[1727150370771,4.79201698,146.67,146.63,9.44]
[1727150371083,4.79201698,146.67,146.53,81.9]
[1727150371084,304.01418007,146.86,146.66,9.44]
[1727150371264,304.01418007,146.86,146.59,6.822]
[1727150371265,9.44,146.73,146.67,10.7915]
[1727150371466,9.44,146.72,146.67,10.7915]
[1727150371676,9.44,146.72,146.67,9.44]
[1727150371873,3.4084,146.71,146.67,12.849]
[1727150372376,1.3916,146.76,146.67,9.44]
[1727150372377,3.42672855,146.73,146.67,9.44]
[1727150372675,9.44,146.73,146.68,9.44]
[1727150373464,9.44,146.73,146.68,3.4088]
[1727150374368,3.4082,146.71,146.67,12.849]
[1727150374671,9.44,146.71,146.66,9.44]
[1727150374875,9.44,146.7,146.63,1.4171]
[1727150375075,3.4087,146.69,146.65,9.44]
[1727150375377,9.44,146.7,146.65,9.44]
[1727150376769,12.8485,146.7,146.66,3.4094]
[1727150376973,12.8485,146.7,146.66,12.8494]
[1727150377574,88.691,146.83,146.69,9.44]
[1727150377575,109.201,146.83,146.69,9.44]
[1727150377770,9.44,146.75,146.69,9.44]
[1727150377975,12.91533938,146.75,146.71,9.44]
[1727150378170,96.00151672,147.0,146.73,9.44]
[1727150378171,3.48693635,146.77,146.73,9.44]
[1727150378371,9.44,146.79,146.73,9.44]
[1727150378577,3.35698205,146.78,146.73,9.44]
[1727150379083,3.35698205,146.78,146.74,3.4074]
[1727150379084,3.4068,146.77,146.74,3.4074]
[1727150379474,9.44,146.76,146.7,1.3812]
[1727150379673,12.8471,146.76,146.71,9.44]
[1727150379888,9.44,146.77,146.72,9.44]
[1727150380378,12.8469,146.77,146.74,3.4075]
[1727150382080,3.4069,146.77,146.74,3.4075]
[1727150382786,3.4072,146.76,146.73,3.4077]
[1727150383981,12.8469,146.77,146.74,3.4073]
[1727150384989,3.4071,146.76,146.73,12.8477]
[1727150386580,12.847,146.77,146.74,3.4075]
[1727150386792,3.407,146.77,146.74,3.4075]
[1727150387083,3.407,146.77,146.73,9.44]
[1727150387283,3.407,146.77,146.73,12.8477]
[1727150388584,12.85766188,146.78,146.73,9.44]
[1727150388791,9.44,146.77,146.72,9.44]
[1727150389592,12.85868482,146.77,146.72,9.44]
[1727150389793,3.4073,146.75,146.72,12.8479]
[1727150394595,3.4073,146.75,146.72,9.44]
[1727150395603,3.4073,146.75,146.72,12.848]
[1727150397905,3.4073,146.75,146.72,9.44]
[1727150398196,9.44,146.76,146.7,1.3812]
[1727150398401,9.44,146.76,146.71,9.44]
[1727150398588,9.44,146.75,146.7,9.44]
[1727150398797,9.44,146.73,146.69,9.44]
[1727150399200,9.44,146.74,146.7,9.44]
[1727150400103,3.4078,146.73,146.7,9.44]
[1727150400894,3.4078,146.73,146.7,12.8484]
[1727150401298,3.4074,146.75,146.71,9.44]
[1727150401497,3.4074,146.75,146.72,9.44]
[1727150401703,3.4074,146.75,146.67,1.4183]
[1727150401903,6.82558482,146.77,146.73,9.44]
[1727150402093,6.82558482,146.77,146.67,1.4183]
[1727150402094,6.82558482,146.77,146.75,9.44]
[1727150402296,1.3299,146.84,146.76,9.44]
[1727150402492,3.406,146.81,146.79,9.44]
[1727150403097,3.4057,146.82,146.79,12.8463]
[1727150404893,12.8440226,146.83,146.79,9.44]
[1727150404894,3.4040226,146.83,146.79,9.44]
[1727150406196,3.4040226,146.83,146.78,9.44]
[1727150406804,3.4058,146.82,146.78,12.8464]
[1727150407007,10.7699,146.84,146.78,12.8464]
[1727150407196,14.24581159,146.84,146.78,9.44]
[1727150407602,3.406,146.81,146.78,9.44]
[1727150408905,3.406,146.81,146.78,12.8465]
[1727150410609,3.4055,146.83,146.8,12.846]
[1727150410813,3.4055,146.83,146.82,9.44]
[1727150415006,6.8055,146.95,146.82,9.44]
[1727150415205,1.3518,146.92,146.87,9.44]
[1727150415703,10.7918,146.92,146.82,4.074]
[1727150415907,230.8032,147.0,146.88,9.44]
[1727150416212,3.4033,146.93,146.89,12.8438]
[1727150416414,9.44,146.93,146.88,9.44]
[1727150417009,3.4037,146.91,146.88,9.44]
[1727150418511,12.8434,146.92,146.88,12.8442]
[1727150418812,9.44,146.91,146.82,4.074]
[1727150419014,9.44,146.91,146.87,9.44]
[1727150419015,3.404,146.9,146.87,9.44]
[1727150419517,3.35217442,146.89,146.87,9.44]
[1727150420314,3.404,146.9,146.87,9.44]
[1727150421114,9.44,146.9,146.84,3.405]
[1727150421309,9.44,146.9,146.85,9.44]
[1727150421811,3.4041,146.89,146.86,9.44]
[1727150422108,3.39181087,146.88,146.86,9.44]
[1727150423113,3.4041,146.89,146.86,9.44]
[1727150423703,3.44086387,146.88,146.86,9.44]
[1727150424220,3.4045,146.87,146.82,4.074]
[1727150424512,9.44,146.9,146.86,9.44]
[1727150425016,3.4042,146.89,146.86,9.44]
[1727150425204,6.7513803,146.89,146.86,9.44]
[1727150426811,3.4043,146.88,146.86,9.44]
[1727150427616,3.38295169,146.87,146.86,9.44]
[1727150428112,3.4043,146.88,146.86,9.44]
[1727150428518,3.37716013,146.87,146.86,9.44]
[1727150428718,3.4043,146.88,146.86,9.44]
[1727150429719,6.80306365,146.89,146.86,9.44]
[1727150430322,3.39896365,146.89,146.87,9.44]
[1727150430625,59.12793188,146.95,146.88,9.44]
[1727150430921,4.34076833,146.97,146.91,9.44]
[1727150431111,9.44,146.95,146.91,9.44]
[1727150431316,3.4032,146.93,146.91,9.44]
[1727150432318,4.34076833,146.97,146.9,9.44]
[1727150432319,3.4033,146.92,146.9,9.44]
[1727150432518,9.44,146.94,146.9,9.44]
[1727150433019,3.4032,146.93,146.9,12.8436]
[1727150433417,3.4032,146.93,146.9,9.44]
[1727150434716,9.44,146.94,146.9,9.44]
[1727150435722,3.4034,146.92,146.9,9.44]
[1727150436425,3.4034,146.92,146.88,3.4041]
[1727150436625,9.44,146.94,146.9,9.44]
[1727150437216,3.4035,146.92,146.9,9.44]
[1727150437418,9.44,146.94,146.91,9.44]
[1727150438123,3.4033,146.93,146.91,9.44]
[1727150439024,4.34076833,146.97,146.92,9.44]
[1727150439227,0.979945,147.07,146.96,9.44]
[1727150439520,0.979945,147.07,146.82,4.074]
[1727150439521,4.41023145,147.02,147.01,9.44]
[1727150439725,0.979945,147.02,147.01,9.44]
[1727150440427,0.979945,147.02,146.94,1.3999]
[1727150440924,0.979945,147.02,146.8,311.74]
[1727150440925,9.44,147.0,146.84,81.72]
[1727150441126,9.44,147.0,146.95,9.44]
[1727150441421,0.979945,147.02,146.95,9.44]
[1727150441623,9.44,147.01,146.96,9.44]
[1727150441823,9.44,147.0,146.84,85.17779979]
[1727150442029,9.44,147.0,146.95,9.44]
[1727150443227,3.4024,146.97,146.95,9.44]
[1727150443429,9.44,146.98,146.94,9.44]
[1727150444331,3.4024,146.97,146.93,3.4031]
[1727150444936,3.4025,146.96,146.93,3.4031]
[1727150445629,3.4023,146.97,146.94,3.4029]
[1727150446023,3.703845,147.02,146.94,14.71]
[1727150446224,3.703845,147.02,146.96,3.4022]
[1727150446225,3.4016,147.0,146.96,3.4022]
[1727150447234,3.703845,147.02,146.94,14.71]
[1727150447534,3.4022,146.97,146.93,3.403]
[1727150448033,4.381145,147.02,146.98,3.4019]
[1727150448731,0.979945,147.02,146.96,14.71]
[1727150449732,3.4014,147.01,146.96,14.71]
[1727150450438,3.4014,147.01,146.97,3.4021]
[1727150450631,0.979945,147.02,146.94,2.6931]
[1727150450632,0.979945,147.02,146.94,17.4031]
[1727150450826,0.979945,147.02,146.95,3.4026]
[1727150451234,3.4019,146.98,146.94,17.4031]
[1727150451623,14.71,147.01,146.94,16.0202]
[1727150451824,3.4023,146.97,146.94,16.0202]
[1727150452032,0.979945,147.02,146.9,1.4135]
[1727150452033,3.39074067,146.96,146.9,1.4135]
[1727150452229,3.4028,146.95,146.9,16.1235]
[1727150452531,3.34240364,146.96,146.9,14.71]
[1727150452733,3.403,146.94,146.91,3.4034]
[1727150454035,3.38461344,146.95,146.91,3.4034]
[1727150454230,16.1325,147.0,146.91,14.71]
[1727150454626,16.1325,147.0,146.92,3.4033]
[1727150454627,3.4025,146.96,146.92,3.4033]
[1727150455639,3.4023,146.97,146.93,3.4029]
[1727150456039,3.4023,146.97,146.91,14.71]
[1727150456040,1.4225,147.0,146.91,14.71]
[1727150456239,3.4024,146.97,146.92,3.4031]
[1727150456437,3.4024,146.97,146.91,14.71]
[1727150457039,3.4024,146.97,146.93,3.4029]
[1727150457542,3.4024,146.97,146.91,14.71]
[1727150458244,1.4225,147.0,146.91,14.71]
[1727150458449,1.4225,147.0,146.92,1.2984]
[1727150458939,0.979945,147.02,146.95,14.71]
[1727150460041,3.4014,147.01,146.97,3.402]
[1727150460239,0.979945,147.02,146.95,14.71]
[1727150460439,3.402,146.98,146.94,18.1127]
[1727150460647,15.689945,147.02,146.94,14.71]
[1727150461146,3.4018,146.99,146.94,14.71]
[1727150461335,15.689945,147.02,146.94,14.71]
[1727150461940,15.689945,147.02,146.95,3.4025]
[1727150462144,15.689945,147.02,146.94,14.71]
[1727150462745,0.979945,147.02,146.95,14.71]
[1727150463740,0.979945,147.02,146.98,3.4019]
[1727150464540,4.381045,147.02,146.98,3.4019]
[1727150464743,4.381045,147.02,146.99,3.4017]
[1727150465836,14.71,147.0,146.87,14.71]
[1727150466044,14.71,146.97,146.87,14.71]
[1727150466246,14.71,146.97,146.87,16.127]
[1727150467750,3.4034,146.92,146.88,3.4043]
[1727150468357,3.4036,146.91,146.87,19.5313]
[1727150468559,3.43798951,146.93,146.78,81.7]
[1727150468560,14.71,146.93,146.78,81.7]
[1727150468856,14.71,146.91,146.82,14.71]
[1727150469247,1.3117,146.92,146.81,1.3584]
[1727150469248,14.71,146.89,146.81,1.3584]
[1727150469647,14.71,146.89,146.79,17.4395]
[1727150469854,3.4056,146.83,146.79,2.7295]
[1727150470050,14.71,146.87,146.79,1.3762]
[1727150471151,3.4056,146.83,146.79,1.3762]
[1727150471351,3.42578891,146.85,146.79,1.3762]
[1727150471552,14.71,146.87,146.79,1.3762]
[1727150471751,3.4056,146.83,146.79,1.3762]
[1727150471961,14.71,146.89,146.79,1.3762]
[1727150472156,14.71,146.89,146.81,14.71]
[1727150472363,3.4051,146.85,146.81,14.71]
[1727150472662,14.71,146.89,146.81,14.71]
[1727150472957,3.4053,146.84,146.81,14.71]
[1727150473760,3.4048,146.86,146.81,14.71]
[1727150474853,3.4048,146.86,146.82,3.4056]
[1727150476163,14.71,146.84,146.65,10.16220332]
[1727150476362,14.71,146.82,146.73,14.71]
[1727150476863,3.42467781,146.82,146.74,14.71]
[1727150477153,14.71,146.83,146.74,14.71]
[1727150477354,2.6716,146.85,146.73,18.1176]
[1727150477355,14.71,146.82,146.73,18.1176]
[1727150477562,18.13331434,146.82,146.73,14.71]
[1727150477964,3.42331434,146.82,146.74,14.71]
[1727150478160,14.71,146.83,146.74,14.71]
[1727150478350,3.4066,146.78,146.74,18.1173]
[1727150482664,3.4069,146.77,146.74,14.71]
[1727150482963,3.47035381,146.82,146.74,14.71]
[1727150483154,14.71,146.83,146.74,14.71]
[1727150483353,3.4066,146.79,146.74,18.1174]
[1727150484361,3.4066,146.78,146.74,18.1174]
[1727150489461,3.4066,146.78,146.74,3.4074]
[1727150489660,3.4066,146.78,146.74,18.1174]
[1727150489857,3.48988613,146.81,146.72,14.71]
[1727150490070,14.71,146.82,146.72,14.71]
[1727150490266,14.71,146.82,146.68,4.0591]
[1727150490267,14.71,146.8,146.68,4.0591]
[1727150490468,14.71,146.8,146.7,14.71]
[1727150490862,3.4077,146.74,146.7,18.1183]
[1727150491466,3.4077,146.74,146.71,3.4082]
[1727150491661,18.06105657,146.8,146.72,14.71]
[1727150491867,14.71,146.76,146.68,18.7691]
[1727150492069,14.71,146.76,146.68,4.0591]
[1727150492365,3.4086,146.7,146.68,4.0591]
[1727150493370,3.4083,146.71,146.68,4.0591]
[1727150494266,14.71,146.76,146.68,1.3188]
[1727150494868,3.4081,146.72,146.68,4.7277]
[1727150495975,3.4082,146.71,146.68,4.7277]
[1727150496273,3.4082,146.71,146.68,1.3188]
[1727150498376,3.4081,146.72,146.68,4.7276]
[1727150498975,3.4081,146.72,146.68,19.4376]
[1727150499373,3.4082,146.71,146.68,16.0288]
[1727150499575,14.71,146.74,146.68,1.3188]
[1727150499776,14.71,146.72,146.65,1.3199]
[1727150500475,3.4091,146.68,146.65,1.3199]
[1727150500674,3.42631272,146.69,146.62,14.71]
[1727150500969,3.4096,146.66,146.62,18.1201]
[1727150501171,14.71,146.7,146.62,14.71]
[1727150501781,19.57108493,146.72,146.64,3.4098]
[1727150502190,3.4094,146.66,146.62,3.4101]
[1727150502481,3.4094,146.66,146.62,14.71]
[1727150502875,3.4096,146.65,146.59,1.351]
[1727150503081,14.71,146.7,146.6,14.71]
[1727150504083,3.4095,146.66,146.62,3.4102]
[1727150505588,3.4096,146.65,146.62,3.4102]
[1727150505788,14.71,146.68,146.59,1.351]
[1727150505997,14.71,146.67,146.59,1.351]
[1727150506285,14.71,146.67,146.58,6.151]
[1727150506286,3.4104,146.62,146.58,6.151]
[1727150506488,6.90304012,146.62,146.58,6.151]
[1727150507184,3.4102,146.63,146.58,6.151]
[1727150507484,6.77252282,146.63,146.58,2.7398]
[1727150507688,3.41,146.64,146.59,3.411]
[1727150507887,3.33161979,146.64,146.59,3.411]
[1727150508078,16.0164,146.67,146.59,3.411]
[1727150508283,3.41,146.64,146.59,3.411]
[1727150508488,6.77552241,146.64,146.59,3.411]
[1727150509292,3.4102,146.63,146.59,3.411]
[1727150509990,3.44434586,146.64,146.58,1.3363]
[1727150510193,1.3064,146.67,146.58,16.0463]
[1727150510882,3.409,146.68,146.64,3.4097]
[1727150511194,1.3154,146.71,146.64,14.71]
[1727150511583,3.4087,146.69,146.64,14.71]
[1727150512086,3.4087,146.69,146.65,3.4094]
[1727150512687,3.47678493,146.72,146.64,14.71]
[1727150512889,14.71,146.74,146.64,14.71]
[1727150513092,18.13747987,146.74,146.64,14.71]
[1727150513487,3.4082,146.71,146.67,3.4091]
[1727150514486,3.4082,146.71,146.68,3.4088]
[1727150515397,3.4082,146.71,146.65,1.3225]
[1727150515398,3.4082,146.71,146.67,3.4091]
[1727150517293,3.4085,146.7,146.67,3.4091]
[1727150520997,3.4087,146.69,146.66,3.4093]
[1727150521397,3.37209706,146.69,146.65,1.3225]
[1727150521703,3.409,146.68,146.65,1.3225]
[1727150522590,3.409,146.68,146.65,4.732]
[1727150524201,3.409,146.68,146.65,3.4095]
[1727150524701,3.4094,146.66,146.62,14.71]
[1727150525001,14.71,146.68,146.61,1.2919]
[1727150525298,18.16464283,146.68,146.61,1.2919]
[1727150525498,3.4094,146.66,146.62,3.4102]
[1727150527905,3.4096,146.65,146.62,3.4102]
[1727150530804,1.4261,146.69,146.63,14.71]
[1727150531105,14.71,146.74,146.64,14.71]
[1727150531510,1.407,146.75,146.64,14.71]
[1727150531804,14.71,146.74,146.64,14.71]
[1727150532899,3.4085,146.7,146.67,3.409]
[1727150534095,3.4089,146.68,146.65,3.4094]
[1727150534295,6.8631974,146.68,146.65,3.4094]
[1727150534495,3.4089,146.68,146.65,3.4094]
[1727150535106,6.8945753,146.68,146.65,3.4094]
[1727150536503,3.4087,146.69,146.62,14.71]
[1727150538503,3.4087,146.69,146.65,3.4095]
[1727150540511,3.4087,146.69,146.66,3.4094]
[1727150541203,3.4087,146.69,146.6,1.3819]
[1727150541204,3.33082418,146.68,146.63,3.41]
[1727150541511,14.71,146.69,146.6,14.71]
[1727150542298,14.71,146.69,146.62,3.4101]
[1727150542299,3.4096,146.66,146.62,3.4101]
[1727150542515,3.43690572,146.65,146.62,3.4101]
[1727150543211,3.4096,146.66,146.62,3.4101]
[1727150543609,3.4096,146.65,146.62,3.4101]
[1727150544912,3.45329876,146.66,146.58,14.71]
[1727150545207,14.71,146.65,146.58,14.71]
[1727150545406,18.13805485,146.65,146.56,17.3607]
[1727150545798,14.71,146.63,146.56,2.6507]
[1727150546012,14.71,146.63,146.56,1.339]
[1727150546210,14.71,146.63,146.54,14.71]
[1727150546211,3.38575424,146.62,146.54,14.71]
[1727150546509,1.3951,146.67,146.54,14.71]
[1727150546709,14.71,146.63,146.54,14.71]
[1727150546904,3.4109,146.6,146.54,14.71]
[1727150547099,14.71,146.63,146.54,14.71]